bitfinex/quotes_BTCUSD_20230403
["timestamp","ask_amount","ask_price","bid_price","bid_amount"]
[1680527133124,0.46454499,28172.0,28171.0,0.56859221]
[1680527133347,0.47870599,28172.0,28171.0,0.55084421]
[1680527133643,0.47862399,28172.0,28171.0,0.55084421]
[1680527133847,0.47862399,28172.0,28171.0,0.54984421]
[1680527133848,0.46354499,28172.0,28171.0,0.54984421]
[1680527134104,0.46454499,28172.0,28171.0,0.54984421]
[1680527134330,0.47860899,28172.0,28171.0,0.54984421]
[1680527134563,0.46454499,28172.0,28171.0,0.54984421]
[1680527134825,0.47821199,28172.0,28171.0,0.54984421]
[1680527135504,0.47821199,28172.0,28171.0,0.55002421]
[1680527135732,0.60452681,28172.0,28171.0,0.55002421]
[1680527135981,0.60552681,28172.0,28171.0,0.55002421]
[1680527136258,0.60552681,28172.0,28171.0,0.54984421]
[1680527136540,0.47821199,28172.0,28171.0,0.54984421]
[1680527140228,0.46454499,28172.0,28171.0,0.54984421]
[1680527140450,0.47835799,28172.0,28171.0,0.54984421]
[1680527146922,0.70567281,28172.0,28171.0,0.54984421]
[1680527147193,0.60567281,28172.0,28171.0,0.54984421]
[1680527148503,0.52085001,28172.0,28171.0,0.54984421]
[1680527149529,0.6057245,28172.0,28171.0,0.54984421]
[1680527149803,0.6057245,28172.0,28171.0,0.55002421]
[1680527150052,0.6057245,28172.0,28171.0,0.54984421]
[1680527150368,0.52085001,28172.0,28171.0,0.54984421]
[1680527150828,0.6057237,28172.0,28171.0,0.54984421]
[1680527152080,0.6815237,28172.0,28171.0,0.54984421]
[1680527153776,0.59665001,28172.0,28171.0,0.54984421]
[1680527154264,1.57556831,28172.0,28171.0,0.3532]
[1680527154485,3.00484569,28172.0,28171.0,0.3532]
[1680527154716,2.79227715,28172.0,28171.0,0.3532]
[1680527154950,1.73377196,28172.0,28171.0,0.3542]
[1680527155176,1.99290678,28172.0,28171.0,0.3542]
[1680527155469,1.73377196,28172.0,28171.0,0.3542]
[1680527155699,3.011442,28172.0,28171.0,0.3542]
[1680527155941,3.004442,28172.0,28171.0,0.3532]
[1680527156169,3.011442,28172.0,28171.0,0.3552]
[1680527156622,1.73377196,28172.0,28171.0,0.3552]
[1680527157792,1.90338731,28172.0,28171.0,0.3552]
[1680527158035,1.90338215,28172.0,28171.0,0.3552]
[1680527158255,1.73377196,28172.0,28171.0,0.4552]
[1680527158730,1.90335899,28172.0,28171.0,0.4552]
[1680527158954,1.73377196,28172.0,28171.0,0.4552]
[1680527159680,1.86509267,28172.0,28171.0,0.4552]
[1680527161284,3.14278016,28172.0,28171.0,0.4552]
[1680527161754,2.99058016,28172.0,28171.0,0.4552]
[1680527161968,1.86449267,28172.0,28171.0,0.4552]
[1680527162188,3.14217429,28172.0,28171.0,0.4552]
[1680527162962,3.4431021,28172.0,28171.0,0.4552]
[1680527164034,3.5947021,28172.0,28171.0,0.31081053]
[1680527164285,0.00335579,28170.0,28169.0,0.00018]
[1680527164532,1.58331407,28170.0,28164.0,0.00018]
[1680527164772,0.98172497,28165.0,28164.0,0.00018]
[1680527165011,1.08778124,28165.0,28164.0,0.00018]
[1680527165252,1.00454497,28165.0,28164.0,0.00018]
[1680527165731,1.02229697,28165.0,28164.0,0.00118]
[1680527166025,1.02229697,28165.0,28164.0,0.00018]
[1680527166288,1.03029697,28165.0,28164.0,0.00118]
[1680527167399,1.24965687,28165.0,28164.0,0.00118]
[1680527168288,1.24165687,28165.0,28164.0,0.00018]
[1680527168711,1.26065687,28165.0,28164.0,0.00218]
[1680527168920,1.75475687,28165.0,28164.0,0.00018]
[1680527169161,1.86169775,28165.0,28164.0,0.002]
[1680527169597,2.14044538,28165.0,28164.0,0.002]
[1680527169853,2.28490229,28165.0,28164.0,0.002]
[1680527171247,0.3734,28163.0,28162.0,0.01167473]
[1680527171505,1.85450086,28163.0,28162.0,0.01167473]
[1680527171760,1.76986897,28163.0,28162.0,0.01167473]
[1680527172784,1.79686897,28163.0,28162.0,0.01167473]
[1680527174358,1.79686897,28163.0,28162.0,0.01158812]
[1680527174572,2.14464211,28163.0,28162.0,0.01158812]
[1680527179438,2.32223211,28163.0,28162.0,0.01158812]
[1680527180644,2.32259492,28163.0,28162.0,0.01158812]
[1680527181965,2.47459492,28163.0,28162.0,0.01158812]
[1680527184156,2.49235845,28163.0,28162.0,0.01158812]
[1680527184882,2.46535845,28163.0,28162.0,0.01158812]
[1680527185121,2.49235845,28163.0,28162.0,0.01158812]
[1680527185795,3.77061739,28163.0,28162.0,0.01158812]
[1680527186238,3.72585386,28163.0,28162.0,0.01158812]
[1680527186473,2.47460492,28163.0,28162.0,0.01158812]
[1680527186693,3.75283413,28163.0,28162.0,0.01158812]
[1680527190762,3.40506099,28163.0,28162.0,0.01158812]
[1680527190972,3.25506099,28163.0,28162.0,0.01158812]
[1680527193337,2.95266099,28163.0,28162.0,0.01158812]
[1680527195103,2.87696099,28163.0,28162.0,0.01158812]
[1680527196012,2.84996099,28163.0,28162.0,0.01158812]
[1680527196283,2.87696099,28163.0,28162.0,0.01158812]
[1680527196736,2.93459288,28163.0,28162.0,0.01158812]
[1680527196965,2.96159288,28163.0,28162.0,0.01158812]
[1680527197879,3.31680112,28163.0,28162.0,0.01158812]
[1680527198349,2.96159288,28163.0,28162.0,0.01158812]
[1680527198587,3.03719288,28163.0,28162.0,0.01158812]
[1680527198817,3.07950882,28163.0,28162.0,0.01149387]
[1680527201647,3.07950882,28163.0,28162.0,0.01149387]
[1680527201866,3.24886299,28163.0,28162.0,0.01149387]
[1680527202812,3.54151022,28163.0,28162.0,0.01149387]
[1680527203270,3.89671846,28163.0,28162.0,0.01149387]
[1680527204673,3.93910101,28163.0,28162.0,0.01149387]
[1680527206767,7.00375182,28163.0,28162.0,0.01149387]
[1680527207933,7.00375182,28163.0,28157.0,0.00018]
[1680527207934,0.5865,28158.0,28157.0,0.00018]
[1680527208171,1.53970097,28158.0,28156.0,0.00018]
[1680527208414,1.12551597,28157.0,28156.0,0.00018]
[1680527208652,1.14327297,28157.0,28156.0,0.00018]
[1680527209144,1.35637297,28157.0,28156.0,0.00018]
[1680527209602,2.76171474,28157.0,28156.0,0.00018]
[1680527210076,2.76171474,28157.0,28155.0,0.00018]
[1680527210077,2.84641503,28157.0,28155.0,0.00018]
[1680527210332,1.70540368,28156.0,28155.0,0.00018]
[1680527210556,2.15187797,28156.0,28155.0,0.00018]
[1680527211013,3.43030643,28156.0,28155.0,0.00018]
[1680527211491,3.45730643,28156.0,28155.0,0.00018]
[1680527211718,3.49069374,28156.0,28155.0,0.00018]
[1680527211946,3.51769374,28156.0,28155.0,0.00018]
[1680527212167,3.41769374,28156.0,28154.0,0.21832421]
[1680527212389,1.50108382,28155.0,28154.0,0.21832421]
[1680527212611,1.89198006,28155.0,28154.0,0.21832421]
[1680527212853,1.69648182,28155.0,28154.0,0.21832421]
[1680527213296,1.61176097,28155.0,28154.0,0.21832421]
[1680527213751,1.69648182,28155.0,28154.0,0.21832421]
[1680527214202,1.72348182,28155.0,28154.0,0.21832421]
[1680527215788,1.72383418,28155.0,28154.0,0.21832421]
[1680527216003,1.95786049,28155.0,28154.0,0.21832421]
[1680527216839,1.39459418,28155.0,28154.0,0.21832421]
[1680527217665,1.30987333,28155.0,28154.0,0.21832421]
[1680527218671,1.46087333,28155.0,28154.0,0.21832421]
[1680527222047,1.38507333,28155.0,28154.0,0.21832421]
[1680527223174,1.6085132,28155.0,28154.0,0.21832421]
[1680527223441,1.92590158,28155.0,28154.0,0.21832421]
[1680527223932,2.05287307,28155.0,28154.0,0.21832421]
[1680527224181,1.92590158,28155.0,28154.0,0.21832421]
[1680527224722,1.69323405,28155.0,28154.0,0.21832421]
[1680527224951,1.73548469,28155.0,28154.0,0.21832421]
[1680527228835,3.18329367,28155.0,28154.0,0.21832421]
[1680527229085,1.73548469,28155.0,28154.0,0.21832421]
[1680527229333,1.58754482,28155.0,28154.0,0.21832421]
[1680527229579,1.67227029,28155.0,28154.0,0.21832421]
[1680527229806,1.58754482,28155.0,28154.0,0.21832421]
[1680527230036,1.84143615,28155.0,28154.0,0.21832421]
[1680527231163,1.58754482,28155.0,28154.0,0.21832421]
[1680527232127,1.51204482,28155.0,28154.0,0.21832421]
[1680527232371,1.68967482,28155.0,28154.0,0.21832421]
[1680527233051,1.77439365,28155.0,28154.0,0.21832421]
[1680527233373,1.68967482,28155.0,28154.0,0.21832421]
[1680527233601,1.9275486,28155.0,28154.0,0.21832421]
[1680527233834,3.20604643,28155.0,28154.0,0.21832421]
[1680527234303,2.96816265,28155.0,28154.0,0.21832421]
[1680527239903,3.13745797,28155.0,28154.0,0.21832421]
[1680527240107,3.01048648,28155.0,28154.0,0.21832421]
[1680527240320,3.43000744,28155.0,28154.0,0.21832421]
[1680527240522,3.01048648,28155.0,28154.0,0.21832421]
[1680527240764,3.78303534,28155.0,28154.0,0.21832421]
[1680527241086,3.01048648,28155.0,28154.0,0.21832421]
[1680527241952,3.08568648,28155.0,28154.0,0.21832421]
[1680527242399,3.50520897,28155.0,28154.0,0.21832421]
[1680527242850,3.50520593,28155.0,28154.0,0.21832421]
[1680527243071,3.08568648,28155.0,28154.0,0.21832421]
[1680527243310,3.44089472,28155.0,28154.0,0.21832421]
[1680527244400,3.44090472,28155.0,28154.0,0.21832421]
[1680527244934,3.50521619,28155.0,28154.0,0.21832421]
[1680527246857,3.54772002,28155.0,28154.0,0.21822374]
[1680527249673,3.30910087,28155.0,28154.0,0.21822374]
[1680527249894,3.23390087,28155.0,28154.0,0.21822374]
[1680527250107,3.26090087,28155.0,28154.0,0.21822374]
[1680527250303,3.58910911,28155.0,28154.0,0.21822374]
[1680527250686,3.61610911,28155.0,28154.0,0.21822374]
[1680527252198,3.26090087,28155.0,28154.0,0.21822374]
[1680527256527,3.0570644,28155.0,28154.0,0.21822374]
[1680527256768,3.03930087,28155.0,28154.0,0.21822374]
[1680527257469,3.03929087,28155.0,28154.0,0.21822374]
[1680527258370,3.04779087,28155.0,28154.0,0.21822374]
[1680527258589,3.40299911,28155.0,28154.0,0.21822374]
[1680527259664,3.04779087,28155.0,28154.0,0.21822374]
[1680527260740,3.26089087,28155.0,28154.0,0.21822374]
[1680527262094,3.18569087,28155.0,28154.0,0.21822374]
[1680527263419,3.18567087,28155.0,28154.0,0.21822374]
[1680527266473,3.43955312,28155.0,28154.0,0.21822374]
[1680527266726,3.18567087,28155.0,28154.0,0.21822374]
[1680527266948,3.43955312,28155.0,28154.0,0.21822374]
[1680527271682,3.45731665,28155.0,28154.0,0.21822374]
[1680527271853,3.81252489,28155.0,28154.0,0.21822374]
[1680527272272,3.45731665,28155.0,28154.0,0.21822374]
[1680527276391,3.27971665,28155.0,28154.0,0.21822374]
[1680527276615,3.45733665,28155.0,28154.0,0.21822374]
[1680527277095,3.43957312,28155.0,28154.0,0.21822374]
[1680527278007,3.43955312,28155.0,28154.0,0.21822374]
[1680527282865,3.18567087,28155.0,28154.0,0.21822374]
[1680527283216,3.77302887,28155.0,28154.0,0.21813271]
[1680527284377,3.77304887,28155.0,28154.0,0.21813271]
[1680527287604,4.02794381,28155.0,28154.0,0.21813271]
[1680527288756,3.77303887,28155.0,28154.0,0.21813271]
[1680527291341,3.59542887,28155.0,28154.0,0.21813271]
[1680527291562,3.77303887,28155.0,28154.0,0.21813271]
[1680527292462,3.7908024,28155.0,28154.0,0.21813271]
[1680527297814,3.79092174,28155.0,28154.0,0.21813271]
[1680527298022,3.79093174,28155.0,28154.0,0.21813271]
[1680527298227,3.94183174,28155.0,28154.0,0.21813271]
[1680527302177,3.91483174,28155.0,28154.0,0.21813271]
[1680527302385,3.94183174,28155.0,28154.0,0.21813271]
[1680527302586,4.29703998,28155.0,28154.0,0.21813271]
[1680527303718,4.29703998,28155.0,28154.0,0.21805394]
[1680527304827,4.29704998,28155.0,28154.0,0.21805394]
[1680527308316,3.94184174,28155.0,28154.0,0.21805394]
[1680527311008,4.2255507,28155.0,28154.0,0.21805394]
[1680527311236,3.94184174,28155.0,28154.0,0.21805394]
[1680527312288,4.2255507,28155.0,28154.0,0.21805394]
[1680527313175,3.94184174,28155.0,28154.0,0.21805394]
[1680527313395,4.29704998,28155.0,28154.0,0.21805394]
[1680527316035,4.29704998,28155.0,28154.0,0.21305394]
[1680527316470,3.94184174,28155.0,28154.0,0.21305394]
[1680527319658,3.92407821,28155.0,28154.0,0.21305394]
[1680527321966,3.84827821,28155.0,28154.0,0.21305394]
[1680527323997,3.84825821,28155.0,28154.0,0.21294034]
[1680527329645,3.86602174,28155.0,28154.0,0.21294034]
[1680527330046,3.86572551,28155.0,28154.0,0.21294034]
[1680527331734,4.22093375,28155.0,28154.0,0.21294034]
[1680527331923,3.94082551,28155.0,28154.0,0.21294034]
[1680527332383,3.94084551,28155.0,28154.0,0.21294034]
[1680527333056,0.94147497,28149.0,28148.0,0.04105956]
[1680527333297,4.01571809,28149.0,28148.0,0.04123956]
[1680527333561,3.83055863,28149.0,28148.0,0.04105956]
[1680527333774,4.01118177,28149.0,28148.0,0.04105956]
[1680527334013,4.34410183,28149.0,28148.0,0.04105956]
[1680527334246,4.37110183,28149.0,28148.0,0.04105956]
[1680527334701,4.34410183,28149.0,28148.0,0.04105956]
[1680527334916,4.37110183,28149.0,28148.0,0.04105956]
[1680527335604,4.38886536,28149.0,28148.0,0.04105956]
[1680527336290,4.05588016,28149.0,28148.0,0.04105956]
[1680527336976,4.4110884,28149.0,28148.0,0.04105956]
[1680527337763,3.01635004,28149.0,28148.0,0.04105956]
[1680527337893,2.99858651,28149.0,28148.0,0.04105956]
[1680527339077,2.62565595,28149.0,28148.0,0.04105956]
[1680527339299,2.62562595,28149.0,28148.0,0.04105956]
[1680527339517,2.59862595,28149.0,28148.0,0.04105956]
[1680527339763,2.62562595,28149.0,28148.0,0.04105956]
[1680527340001,2.59862595,28149.0,28148.0,0.04105956]
[1680527340237,2.59383812,28149.0,28148.0,0.76671037]
[1680527340465,2.59377812,28149.0,28148.0,0.76689037]
[1680527346541,2.80578287,28149.0,28148.0,0.76689037]
[1680527348461,3.0598546,28149.0,28148.0,0.76689037]
[1680527348935,2.97567812,28149.0,28148.0,0.76689037]
[1680527349157,3.18765052,28149.0,28148.0,0.76689037]
[1680527349416,2.97567812,28149.0,28148.0,0.76689037]
[1680527352205,3.18762434,28149.0,28148.0,0.76689037]
[1680527352427,2.97567812,28149.0,28148.0,0.76689037]
[1680527353709,3.18764686,28149.0,28148.0,0.76689037]
[1680527354392,3.02792692,28149.0,28148.0,0.76689037]
[1680527355349,2.81597812,28149.0,28148.0,0.76689037]
[1680527357164,3.31529405,28149.0,28148.0,0.76689037]
[1680527357358,2.97569812,28149.0,28148.0,0.76689037]
[1680527361560,3.18897812,28149.0,28148.0,0.76689037]
[1680527362007,3.26477812,28149.0,28148.0,0.76689037]
[1680527362953,3.26459812,28149.0,28148.0,0.76689037]
[1680527363430,3.23759812,28149.0,28148.0,0.76689037]
[1680527364126,3.29257334,28149.0,28148.0,0.76689037]
[1680527364347,3.26477812,28149.0,28148.0,0.76682719]
[1680527372021,3.23777812,28149.0,28148.0,0.76682719]
[1680527372224,3.51932039,28149.0,28148.0,0.76682719]
[1680527374917,3.49232039,28149.0,28148.0,0.76682719]
[1680527375127,3.85230288,28149.0,28148.0,0.76682719]
[1680527375557,4.09164313,28149.0,28148.0,0.76682719]
[1680527379080,4.09165313,28149.0,28148.0,0.76682719]
[1680527379965,3.85231288,28149.0,28148.0,0.76682719]
[1680527383376,4.13898966,28149.0,28148.0,0.76682719]
[1680527383826,4.3610379,28149.0,28148.0,0.76682719]
[1680527385007,4.3610379,28149.0,28148.0,0.76653373]
[1680527387460,4.3340379,28149.0,28148.0,0.76653373]
[1680527387680,4.63303256,28149.0,28148.0,0.76653373]
[1680527387935,6.2794527,28149.0,28148.0,0.76653373]
[1680527388602,4.3610379,28149.0,28148.0,0.76653373]
[1680527391923,4.4368379,28149.0,28148.0,0.76653373]
[1680527393290,4.4098379,28149.0,28148.0,0.76653373]
[1680527393459,4.4368379,28149.0,28148.0,0.76653373]
[1680527393694,4.4098379,28149.0,28148.0,0.76653373]
[1680527393883,4.45460143,28149.0,28148.0,0.76653373]
[1680527394571,4.45487192,28149.0,28148.0,0.31886511]
[1680527394974,4.45487192,28149.0,28148.0,0.29930555]
[1680527395281,4.81008016,28149.0,28148.0,0.29930555]
[1680527395502,6.72849496,28149.0,28148.0,0.29930555]
[1680527395764,6.44154769,28149.0,28148.0,0.29930555]
[1680527395986,4.8100554,28149.0,28148.0,0.29930555]
[1680527396206,6.7284702,28149.0,28148.0,0.29930555]
[1680527396428,6.44154769,28149.0,28148.0,0.29930555]
[1680527396644,4.52313289,28149.0,28148.0,0.29930555]
[1680527397311,6.44154769,28149.0,28148.0,0.29930555]
[1680527398108,7.14154769,28149.0,28148.0,0.29930555]
[1680527398789,5.98641245,28149.0,28148.0,0.44128042]
[1680527399031,3.65056588,28149.0,28148.0,0.29930555]
[1680527399274,2.96832788,28149.0,28148.0,0.29930555]
[1680527399526,2.35380312,28149.0,28148.0,0.29930555]
[1680527400227,2.96814788,28149.0,28148.0,0.29948555]
[1680527400455,2.38062312,28149.0,28148.0,0.29948555]
[1680527401179,2.37562312,28149.0,28148.0,0.29948555]
[1680527403714,2.37580312,28149.0,28148.0,0.29430555]
[1680527410507,2.63098207,28149.0,28148.0,0.29430555]
[1680527411416,2.63080207,28149.0,28148.0,0.29448555]
[1680527416161,2.63080207,28149.0,28148.0,0.29430542]
[1680527416162,2.63098207,28149.0,28148.0,0.29430542]
[1680527421768,2.63098207,28149.0,28148.0,0.29448542]
[1680527422727,2.63098207,28149.0,28148.0,0.29430542]
[1680527428942,2.6306938,28149.0,28148.0,0.29448542]
[1680527432331,2.6308738,28149.0,28148.0,0.28930542]
[1680527434112,2.8085038,28149.0,28148.0,0.28930542]
[1680527444634,2.80854812,28149.0,28148.0,0.28930542]
[1680527446742,2.80854812,28149.0,28148.0,0.28930542]
[1680527446960,2.55332485,28149.0,28148.0,0.28930542]
[1680527447438,3.14084961,28149.0,28148.0,0.28930542]
[1680527447664,2.80843345,28149.0,28148.0,0.28930542]
[1680527447942,2.55332485,28149.0,28148.0,0.28930542]
[1680527448166,2.63078777,28149.0,28148.0,0.28930542]
[1680527449079,2.37569485,28149.0,28148.0,0.28930542]
[1680527449533,2.37569485,28149.0,28148.0,0.28948542]
[1680527449988,2.55331485,28149.0,28148.0,0.28930542]
[1680527452296,2.55331485,28149.0,28148.0,0.28948542]
[1680527452780,2.55331485,28149.0,28148.0,0.28930542]
[1680527456296,2.55332485,28149.0,28148.0,0.28930542]
[1680527460354,2.55254453,28149.0,28148.0,0.30325221]
[1680527471329,2.55272453,28149.0,28148.0,0.30325221]
[1680527471551,2.55254453,28149.0,28148.0,0.30325221]
[1680527478115,2.53478253,28149.0,28148.0,0.30325221]
[1680527478772,2.35715253,28149.0,28148.0,0.30325221]
[1680527479190,2.37491453,28149.0,28148.0,0.30325221]
[1680527481299,2.36066753,28149.0,28148.0,0.30325221]
[1680527481927,2.36084753,28149.0,28148.0,0.30300806]
[1680527482676,2.34308553,28149.0,28148.0,0.30300806]
[1680527483623,2.59843331,28149.0,28148.0,0.30300806]
[1680527484344,2.25568652,28149.0,28148.0,0.62432706]
[1680527484582,0.64279835,28149.0,28148.0,0.62432706]
[1680527484830,0.44556502,28149.0,28148.0,0.62432706]
[1680527485079,0.47256502,28149.0,28148.0,0.62432706]
[1680527485374,0.08512683,28150.0,28148.0,1.34957983]
[1680527485621,0.29809036,28151.0,28149.0,0.044643]
[1680527485622,0.21298386,28151.0,28149.0,0.044643]
[1680527485868,0.21298386,28151.0,28150.0,0.18892056]
[1680527486114,0.08512683,28153.0,28152.0,0.2]
[1680527486353,0.56777883,28153.0,28152.0,0.37067956]
[1680527486598,0.56777883,28153.0,28152.0,0.37085956]
[1680527486833,0.56777883,28153.0,28152.0,0.38861956]
[1680527487065,0.56777883,28153.0,28152.0,0.41309899]
[1680527487304,0.56777883,28153.0,28152.0,0.43085899]
[1680527488255,0.08512683,28153.0,28152.0,0.43085899]
[1680527488710,0.21298386,28154.0,28152.0,0.47503299]
[1680527488956,0.56777883,28154.0,28153.0,0.0753]
[1680527489199,0.56795883,28154.0,28153.0,0.09306]
[1680527489896,0.4462818,28154.0,28153.0,0.09306]
[1680527491286,0.36115497,28154.0,28153.0,0.09306]
[1680527491811,0.36115497,28154.0,28153.0,0.09324]
[1680527491812,0.36097497,28154.0,28153.0,0.09324]
[1680527492047,0.006,28154.0,28153.0,0.16904]
[1680527492286,0.006,28154.0,28153.0,0.212442]
[1680527492785,0.21298386,28158.0,28153.0,0.212442]
[1680527493072,0.00018,28159.0,28157.0,0.09517956]
[1680527493318,2.04192683,28160.0,28158.0,0.0758]
[1680527493319,2.04210683,28160.0,28158.0,0.0758]
[1680527493557,2.04210683,28160.0,28159.0,0.293556]
[1680527493558,0.00018,28160.0,28159.0,0.293556]
[1680527493809,0.08530683,28161.0,28159.0,0.293556]
[1680527494038,0.00018,28161.0,28160.0,0.09517956]
[1680527494299,0.00018,28163.0,28162.0,0.2]
[1680527494540,0.08530683,28164.0,28163.0,0.01937956]
[1680527494775,0.08512683,28164.0,28163.0,0.03713256]
[1680527495007,0.12785703,28165.0,28163.0,0.03713256]
[1680527495008,0.00018,28165.0,28163.0,0.03713256]
[1680527495241,0.35515497,28165.0,28163.0,0.03713256]
[1680527495954,0.006,28164.0,28163.0,0.03713256]
[1680527496197,0.00018,28165.0,28163.0,0.03713256]
[1680527496438,0.00018,28165.0,28164.0,0.618355]
[1680527496439,0.006,28165.0,28164.0,0.618355]
[1680527496698,0.02365,28166.0,28165.0,0.2]
[1680527496939,0.02365,28166.0,28165.0,0.293252]
[1680527497149,0.02365,28166.0,28165.0,0.338236]
[1680527499794,0.02465,28166.0,28165.0,0.75217564]
[1680527501028,0.02365,28166.0,28165.0,0.73917564]
[1680527501258,0.01965,28166.0,28165.0,0.79244913]
[1680527501957,0.01965,28166.0,28165.0,0.86824913]
[1680527502889,0.02011462,28166.0,28165.0,0.86824913]
[1680527503391,0.01911462,28166.0,28165.0,0.85524913]
[1680527503625,0.02011462,28166.0,28165.0,0.46730949]
[1680527504096,0.02011462,28166.0,28165.0,0.31600949]
[1680527504296,0.01911462,28166.0,28165.0,0.30300949]
[1680527504620,0.02011462,28166.0,28165.0,0.32300949]
[1680527504854,0.01911462,28166.0,28165.0,0.30300949]
[1680527505096,0.02011462,28166.0,28165.0,0.31600949]
[1680527506041,0.02011462,28166.0,28165.0,0.31627549]
[1680527506734,0.37508959,28166.0,28165.0,0.29852349]
[1680527506966,0.37526959,28166.0,28165.0,0.25345349]
[1680527508580,0.37526959,28166.0,28165.0,0.27120549]
[1680527508813,0.37526959,28166.0,28165.0,0.25345349]
[1680527509045,0.37526959,28166.0,28165.0,0.27120549]
[1680527509751,0.37526959,28166.0,28165.0,0.25345349]
[1680527510937,0.37426959,28166.0,28165.0,0.24145349]
[1680527511166,0.38226959,28166.0,28165.0,0.24145349]
[1680527512074,0.37426959,28166.0,28165.0,0.24045349]
[1680527512319,0.38226959,28166.0,28165.0,0.24245349]
[1680527514927,0.39671859,28166.0,28165.0,0.24245349]
[1680527515165,0.38226959,28166.0,28165.0,0.202]
[1680527515904,1.95446197,28166.0,28165.0,0.002]
[1680527516140,0.42578383,28163.0,28160.0,0.00018]
[1680527516381,1.79536262,28162.0,28159.0,0.00018]
[1680527516616,0.013819,28161.0,28159.0,0.00018]
[1680527516849,0.35497497,28160.0,28158.0,0.20018]
[1680527518023,0.35497497,28160.0,28159.0,0.03662002]
[1680527518500,0.37197497,28160.0,28159.0,0.03662002]
[1680527518959,0.37215497,28160.0,28159.0,0.03662002]
[1680527519184,0.35497497,28160.0,28159.0,0.03662002]
[1680527519405,0.37897497,28160.0,28159.0,0.03662002]
[1680527520136,0.37897497,28160.0,28158.0,0.20018]
[1680527520356,0.378831,28160.0,28159.0,0.00331003]
[1680527520614,1.65699267,28160.0,28159.0,0.00331003]
[1680527521985,1.65747496,28160.0,28159.0,0.00331003]
[1680527522725,1.63347496,28160.0,28159.0,0.00331003]
[1680527522967,1.66047496,28160.0,28159.0,0.00331003]
[1680527524149,1.73627496,28160.0,28159.0,0.00331003]
[1680527524599,1.73627496,28160.0,28159.0,0.02106603]
[1680527525063,1.66047496,28160.0,28159.0,0.05736733]
[1680527528061,0.38231329,28160.0,28159.0,0.02106603]
[1680527528547,0.02748229,28160.0,28159.0,0.06533803]
[1680527528787,0.00048229,28160.0,28159.0,0.06533803]
[1680527529023,0.00048229,28160.0,28159.0,0.06633803]
[1680527529024,0.01148229,28160.0,28159.0,0.06633803]
[1680527529266,0.01148229,28160.0,28159.0,0.10220984]
[1680527529718,0.01148229,28160.0,28159.0,0.05793784]
[1680527530020,0.36645726,28160.0,28159.0,0.05793784]
[1680527530242,0.35545726,28160.0,28159.0,0.05693784]
[1680527530446,0.36645726,28160.0,28159.0,0.05793784]
[1680527537388,0.36645726,28160.0,28159.0,0.04018184]
[1680527539361,0.38014226,28160.0,28159.0,0.04018184]
[1680527539592,0.36645726,28160.0,28159.0,0.04018184]
[1680527539849,0.38003926,28160.0,28159.0,0.04018184]
[1680527540546,0.38031426,28160.0,28159.0,0.04018184]
[1680527541952,0.44225726,28160.0,28159.0,0.04018184]
[1680527543524,0.44225726,28160.0,28159.0,0.04004668]
[1680527543525,0.45532126,28160.0,28159.0,0.04004668]
[1680527543752,0.53060126,28160.0,28159.0,0.04004668]
[1680527543979,0.61572809,28160.0,28159.0,0.00417487]
[1680527544213,1.89395681,28160.0,28159.0,0.00417487]
[1680527545336,1.90071181,28160.0,28159.0,0.00317487]
[1680527545539,1.92771181,28160.0,28159.0,0.00317487]
[1680527545745,2.06388884,28160.0,28159.0,0.00317487]
[1680527545955,1.97876201,28160.0,28159.0,0.00317487]
[1680527546164,2.14899534,28160.0,28159.0,0.00317487]
[1680527546381,1.97876201,28160.0,28159.0,0.00317487]
[1680527547288,2.14899534,28160.0,28159.0,0.00317487]
[1680527547492,2.30059534,28160.0,28159.0,0.00317487]
[1680527547933,2.63911087,28160.0,28159.0,0.00317487]
[1680527548166,3.52142794,28160.0,28159.0,0.00317487]
[1680527548389,3.46024695,28160.0,28159.0,0.00317487]
[1680527548613,3.43324695,28160.0,28159.0,0.00317487]
[1680527548839,3.68859473,28160.0,28159.0,0.00317487]
[1680527549354,0.4131,28154.0,28151.0,0.00018]
[1680527549584,0.83581497,28152.0,28150.0,0.00018]
[1680527549812,0.53817797,28151.0,28150.0,0.00018]
[1680527550256,0.84667797,28151.0,28150.0,0.00018]
[1680527550490,0.84723886,28151.0,28150.0,0.00018]
[1680527550743,0.84667797,28151.0,28150.0,0.00018]
[1680527551184,0.94667797,28151.0,28150.0,0.00018]
[1680527551414,0.84667797,28151.0,28150.0,0.00018]
[1680527551660,0.87367797,28151.0,28150.0,0.00018]
[1680527551878,2.2103224,28151.0,28150.0,0.00018]
[1680527552097,2.0857224,28151.0,28150.0,0.00018]
[1680527552320,0.80567797,28151.0,28149.0,0.00018]
[1680527552540,0.75337797,28150.0,28149.0,0.00018]
[1680527552754,0.77113897,28150.0,28149.0,0.00018]
[1680527553796,0.86383897,28150.0,28149.0,0.00018]
[1680527554510,0.86383897,28150.0,28149.0,7.61e-05]
[1680527554531,1.02814039,28150.0,28148.0,0.32450806]
[1680527554773,0.46106597,28149.0,28148.0,0.32450806]
[1680527555057,0.47882797,28149.0,28148.0,0.32464416]
[1680527555789,0.50582797,28149.0,28148.0,0.32464416]
[1680527558801,0.50640643,28149.0,28148.0,0.32464416]
[1680527559800,0.50658643,28149.0,28148.0,0.32464416]
[1680527560034,0.50640643,28149.0,28148.0,0.32464416]
[1680527561645,1.05304747,28149.0,28148.0,0.32450806]
[1680527561870,1.20304747,28149.0,28148.0,0.32450806]
[1680527562147,1.05304747,28149.0,28148.0,0.32450806]
[1680527562402,1.44381747,28149.0,28148.0,0.32450806]
[1680527562848,1.41681747,28149.0,28148.0,0.32450806]
[1680527563080,1.44381747,28149.0,28148.0,0.32450806]
[1680527563310,1.79021747,28149.0,28148.0,0.32450806]
[1680527563549,1.81721747,28149.0,28148.0,0.32450806]
[1680527563790,1.79021747,28149.0,28148.0,0.32450806]
[1680527564023,1.81721747,28149.0,28148.0,0.32450806]
[1680527564252,3.06913005,28149.0,28148.0,0.29042221]
[1680527564483,2.93326901,28149.0,28148.0,0.29042221]
[1680527564756,2.90626901,28149.0,28148.0,0.29042221]
[1680527564992,2.90625833,28149.0,28148.0,0.29042221]
[1680527565455,3.60625833,28149.0,28148.0,0.29042221]
[1680527565914,3.63325833,28149.0,28148.0,0.29042221]
[1680527566134,3.98846657,28149.0,28148.0,0.25676654]
[1680527566609,3.98846657,28149.0,28148.0,0.18013893]
[1680527566840,3.98828657,28149.0,28148.0,0.070758]
[1680527567075,0.35,28148.0,28147.0,0.0215]
[1680527567334,4.88170414,28148.0,28147.0,0.0215]
[1680527567564,4.88170917,28148.0,28147.0,0.0215]
[1680527568248,0.7865,28143.0,28142.0,0.0215]
[1680527568491,2.27733324,28143.0,28142.0,0.0215]
[1680527568731,2.69044897,28143.0,28142.0,0.0215]
[1680527569201,2.71744897,28143.0,28142.0,0.0215]
[1680527569420,2.69044897,28143.0,28142.0,0.0215]
[1680527569648,2.71744897,28143.0,28142.0,0.0215]
[1680527570178,3.99656655,28143.0,28142.0,0.0215]
[1680527570630,2.85206036,28143.0,28142.0,0.0215]